Workbook

Sheet стр.1
BE3: "УТВЕРЖДАЮ"
BE4: Заведующий муниципальным бюджетным дошкольным образовательным учреждением детским садом "Улыбка" с. Александров-Гай, Александрово-Гайский район, Саратовской области
BY5: Т.В. Леонова
BE6: (подпись) | BY6: (расшифровка подписи)
BM7: " | BN7: 07 | BR7: " | BU7: мая | CJ7: 20 | CN7: 18 | CR7: г.
A16: План финансово-хозяйственной деятельности
AB17: на 08 мая 2018 г.
BT20: Форма по КФД
Y21: " | Z21: 07 | AD21: " | AG21: мая | AY21: 20 | BC21: 18 | BG21: г. | BT21: Дата | CF21: 07.05.2018
A24: Наименование | W24: Муниципальное бюджетное дошкольное образовательное учреждение детский сад "Улыбка" с. Александров-Гай, Александрово-Гайский район, Саратовской области | BT24: по ОКПО | CF24: 59392018
A25: муниципального
A26: учреждения
A27: (подразделения)
A29: ИНН/КПП | W29: 6401003264/640101001
A30: Единица измерения: руб. | BT30: по ОКЕИ | CF30: 383
A32: Наименование органа, | AA32: Администрации Александрово-Гайского муниципального района Саратовской области
A33: осуществляющего
A34: функции и полномочия
A35: учредителя
A37: Адрес фактического | AA37: 413371, Саратовская обл, Александрово-Гайский район, с. Новоалександровка , ул. Крайняя 5 "А"
A38: местонахождения
A39: мунципального
A40: учреждения
A41: (подразделения)

Sheet стр.2
A2: I. Основные сведения о деятельности муниципального учреждения
A4: 1.1. Цели деятельности муниципального учреждения:
A5: 1.1.1 Образовательная деятельность по образовательным программам дошкольного образования, присмотр и уход за детьми.
A6: 1.1.2 Создание оптимальных благоприятных условий для полноценного образования и воспитания.
A7: 1.2. Виды деятельности муниципального учреждения :
A8: 1.2.1. Дошкольного образования для детей.
A9: 1.2.2. Осуществление присмотра и ухода за воспитанниками, реализацию общеобразовательной программы дошкольного образования в соответствии с ФГОС.
A10: 1.3. Перечень услуг (работ), относящихся в соответствии с уставом положением подразделения) к основным видам деятельности мунципального учреждения, предоставление которых для физических и юридических лиц осуществляется, в том числе за плату:
A11: 1.3.1. Реализация основных общеобразовательных программ дошкольного образования.
A12: 1.3.2. Присмотр и уход.
A13: 1.4. Общая балансовая стоимость недвижимого муниципального имущества на дату составления Плана - 2455334,22 рублей,
A14: 4 | B14: в том числе:
B15: стоимость имущества, закрепленного на праве оперативного управления
I16: 2455334,22_ рублей,
A17: стоимость имущества, приобретенного учреждением за счет доходов, полученных от иной приносящей доход деятельности
I18: 0,00 рублей,
A19: 1.5. Общая балансовая стоимость движимого муниципального имущества на дату составления Плана 681 754,26 рублей,
B20: в том числе:
B21: балансовая стоимостьособо ценного движимого имущества | BS21: 138 673,29 рублей

Sheet Таблица 1
C1: Таблица 1
A3: Показатели финансового состояния учреждения (подразделения)
A4: на 07 мая 20 18 г.
A5: (последнюю отчетную дату)
A8: N п/п | B8: Наименование показателя | C8: Сумма, тыс. руб.
A9: 1 | B9: 2 | C9: 3
B10: Нефинансовые активы, всего: | C10: 3137088.48
B11: из них:
B12: недвижимое имущество, всего: | C12: 2455334.22
B13: в том числе:
B14: остаточная стоимость
B15: особо ценное движимое имущество, всего: | C15: 138673.29
B16: в том числе:
B17: остаточная стоимость | C17: 31044
B18: Финансовые активы, всего: | C18: =C20+C25 -> 50518.82
B19: из них:
B20: денежные средства учреждения, всего | C20: =C22 -> 50518.82
B21: в том числе:
B22: денежные средства учреждения на счетах | C22: 50518.82
B23: денежные средства учреждения, размещенные на депозиты в кредитной организации
B24: иные финансовые инструменты
B25: дебиторская задолженность по доходам | C25: 0
B26: дебиторская задолженность по расходам
B27: Обязательства, всего: | C27: =C30 -> 486128.57
B28: из них:
B29: долговые обязательства
B30: кредиторская задолженность: | C30: =202836.43+139369.06+84640.83+59282.25 -> 486128.57
B31: в том числе:
B32: просроченная кредиторская задолженность | C32: =59282.25+170605.26 -> 229887.51

Sheet Таблица 2
K1: Таблица 2
A2: Показатели по поступлениям и выплатам учреждения (подразделения) на | G2: 20___ г.
A4: Наименование показателя | B4: Код строки | C4: КБК РФ | D4: Объем финансового обеспечения, руб. (с точностью до двух знаков после запятой - 0,00)
D5: всего | E5: в том числе:
E6: субсидии на финансовое обеспечение выполнения муниципального задания из местного бюджета | F6: субсидии на финансовое обеспечение выполнения государственного задания из бюджета Федерального фонда обязательного медицинского страхования | G6: субсидии, предоставляемые в соответствии с абзацем вторым пункта 1 статьи 78.1 Бюджетного кодекса Российской Федерации | H6: субсидии на осуществление капитальных вложений | I6: средства обязательного медицинского страхования | J6: поступления от оказания услуг (выполнения работ) на платной основе и от иной приносящей доход деятельности
J7: всего | K7: из них гранты
A8: 1 | B8: 2 | C8: 3 | D8: 4 | E8: 5 | F8: 5.1 | G8: 6 | H8: 7 | I8: 8 | J8: 9 | K8: 10
A9: Поступления от доходов, всего: | B9: 100 | C9: X | D9: =D10+D12+D13+D15 -> 5242729.56 | E9: =E12 -> 4679937.29 | F9: =F10+F12+F13 -> 0 | G9: =G15 -> 149992.27 | H9: =H15 -> 0 | I9: =I10+I12+I13 -> 0 | J9: =J12 -> 412800
A10: в том числе: | B10: 110 | E10: X | G10: X | H10: X | K10: X
A11: доходы от собственности
A12: доходы от оказания услуг, работ | B12: 120 | C12: 130 | D12: =E12+J12 -> 5092737.29 | E12: ='Таблица 2.2'!H10 -> 4679937.29 | F12: 0 | G12: X | H12: X | J12: ='Таблица 2.2'!H14 -> 412800
A13: доходы от штрафов, пеней, иных сумм принудительного изъятия | B13: 130 | E13: X | G13: X | H13: X | K13: X
A14: безвозмездные поступления от наднациональных организаций, правительств иностранных государств, международных финансовых организаций | B14: 140 | E14: X | G14: X | H14: X | K14: X
A15: иные субсидии, предоставленные из бюджета | B15: 150 | C15: 180 | D15: =G15 -> 149992.27 | E15: X | G15: ='Таблица 2.2'!H81 -> 149992.27 | H15: =H28 -> 0 | J15: X | K15: X
A16: прочие доходы | B16: 160 | E16: X | G16: X | H16: X
A17: доходы от операций с активами | B17: 180 | C17: X | E17: X | G17: X | H17: X | K17: X
A18: Выплаты по расходам, всего: | B18: 200 | C18: X | D18: =E18+G18+J18 -> 5242729.56 | E18: =E19+E24+E28 -> 4679937.29 | G18: =G24+G28+G19 -> 149992.27 | H18: =H28 -> 0 | J18: =J28 -> 412800
A19: в том числе на: выплаты персоналу всего: | B19: 210 | C19: 110 | D19: =E19+G19 -> 4367269.73 | E19: ='Таблица 2.2'!H20 -> 4265588.73 | G19: =G20 -> 101681
A20: из них: | B20: 211 | C20: 110 | D20: =E20+G20 -> 4367269.73 | E20: ='Таблица 2.2'!H20 -> 4265588.73 | G20: ='Таблица 2.2'!H83+'Таблица 2.2'!H84+'Таблица 2.2'!H85+'Таблица 2.2'!H86+'Таблица 2.2'!H87 -> 101681
A21: оплата труда и начисления на выплаты по оплате труда
A22: социальные и иные выплаты населению, всего | B22: 220
A23: из них:
A24: уплату налогов, сборов и иных платежей, всего | B24: 230 | C24: 850 | D24: =E24+G24 -> 11983.56 | E24: ='Таблица 2.2'!H48 -> 6983.56 | G24: ='Таблица 2.2'!H90 -> 5000
A25: из них:
A26: безвозмездные перечисления организациям | B26: 240
A27: прочие расходы (кроме расходов на закупку товаров, работ, услуг) | B27: 250
A28: расходы на закупку товаров, работ, услуг, всего | B28: 260 | C28: X | D28: =E28+G28+J28 -> 863476.27 | E28: ='Таблица 2.2'!H27 -> 407365 | G28: ='Таблица 2.2'!H88+'Таблица 2.2'!H89+'Таблица 2.2'!H91 -> 43311.27 | J28: ='Таблица 2.2'!H14 -> 412800
A29: Поступление финансовых активов, всего: | B29: 300 | C29: X
A30: из них: | B30: 310
A31: увеличение остатков средств
A32: прочие поступления | B32: 320
A33: Выбытие финансовых активов, всего | B33: 400
A34: из них: | B34: 410
A35: уменьшение остатков средств
A36: прочие выбытия | B36: 420
A37: Остаток средств на начало года | B37: 500 | C37: X
A38: Остаток средств на конец года | B38: 600 | C38: X

Sheet Таблица 2.1
K1: Таблица 2.1
A2: Показатели выплат по расходам на закупку товаров, работ, услуг учреждения (подразделения)
A3: на 07 мая 2018 г.
A6: Наименование показателя | B6: Код строки | C6: Год начала закупки | D6: Сумма выплат по расходам на закупку товаров, работ и услуг, руб. (с точностью до двух знаков после запятой - 0,00
D7: всего на закупки | G7: в том числе:
G8: в соответствии с Федеральным законом от 5 апреля 2013 г. N 44-ФЗ "О контрактной системе в сфере закупок товаров, работ, услуг для обеспечения государственных и муниципальных нужд" | J8: в соответствии с Федеральным законом от 18 июля 2011 г. N 223-ФЗ "О закупках товаров, работ, услуг отдельными видами юридических лиц"
D9: на 2017г. очередной финансовый год | E9: на 20__ г. 1-ый год планового периода | F9: на 20__ г. 2-ой год планового периода | G9: на 20 17 г. очередной финансовый год | H9: на 20__ г. 1-ый год планового периода | I9: на 20__ г. 2-ой год планового периода | J9: на 20__ г. очередной финансовый год | K9: на 20__ г. 1-ый год планового периода | L9: на 20__ г. 1-ый год планового периода
A10: 1 | B10: 2 | C10: 3 | D10: 4 | E10: 5 | F10: 6 | G10: 7 | H10: 8 | I10: 9 | J10: 10 | K10: 11 | L10: 12
A11: Выплаты по расходам на закупку товаров, работ, услуг всего: | B11: 1 | C11: X | D11: =D12+D14 -> 863476.27 | G11: =G12+G14 -> 863476.27
A12: в том числе: на оплату контрактов заключенных до начала очередного финансового года: | B12: 1001 | C12: X | D12: =D13 -> 43311.27 | G12: =G13 -> 43311.27
B13: 2017 | D13: ='Таблица 2.2'!H88+'Таблица 2.2'!H89+'Таблица 2.2'!H91 -> 43311.27 | G13: =D13 -> 43311.27
A14: на закупку товаров работ, услуг по году начала закупки: | B14: 2001 | D14: =D15 -> 820165 | G14: =G15 -> 820165
B15: 2018 | D15: ='Таблица 2.2'!H27+'Таблица 2.2'!H60 -> 820165 | G15: =D15 -> 820165

Sheet Таблица 2.2
G1: Таблица 2.2
A3: Показатели по поступлениям и выплатам бюджетного учреждения (подразделения), детализировано
H4: улыбка
A5: № п\п | B5: Наименование показателя | C5: Код бюджетной классификации | D5: Очередной финансовый год
D6: I кв. | E6: II кв. | F6: III кв. | G6: IV кв. | H6: Всего
A7: 1. | B7: Остаток средств на начало планируемого года | C7: Х | D7: 0 | H7: =SUM(D7:G7) -> 0
A8: 2. | B8: Поступления, всего: | C8: Х | D8: =SUM(D10:D14) -> 1430031.21 | E8: =SUM(E10:E14) -> 1356779.57 | F8: =SUM(F10:F14) -> 1266174.43 | G8: =SUM(G10:G14) -> 1189744.35 | H8: =SUM(D8:G8) -> 5242729.56
A9: в том числе:
A10: 2.1. | B10: Субсидии на выполнении муниципального задания, в том числе: | D10: =D18 -> 1241071.56 | E10: =E18 -> 1228989.57 | F10: =F18 -> 1140725.43 | G10: =G18 -> 1069150.73 | H10: 4679937.29
A11: 2.2. | B11: Субсидии на иные цели | D11: =D81 -> 85759.65 | E11: =E81 -> 24590 | F11: 22249 | G11: 17393.62 | H11: 149992.27
A12: 2.3. | B12: Бюджетные инвестиции | H12: 0
A13: 2.4. | B13: Поступления от оказания бюджетным учреждением услуг (выполнение работ), предоставление которых для физических и юридических лиц осуществляется на платной основе | H13: 0
A14: 2.5. | B14: Поступления от иной приносящей доход деятельности, всего: | D14: =D16+D17 -> 103200 | E14: =E16+E17 -> 103200 | F14: =F16+F17 -> 103200 | G14: =G16+G17 -> 103200 | H14: 412800
A15: в том числе:
A16: 2.5.1. | B16: от сдачи имущества в аренду | H16: 0
A17: 2.5.2. | B17: иные поступления | D17: =D53 -> 103200 | E17: =E53 -> 103200 | F17: =F53 -> 103200 | G17: =G53 -> 103200 | H17: 412800
A18: 3. | B18: Выплаты за счет субсидии на финансовое обеспечение выполнения муниципального задания из местного бюджета, всего: | C18: Х | D18: =D20+D27+D45+D48 -> 1241071.56 | E18: =E20+E27+E45+E48 -> 1228989.57 | F18: =F20+F27+F45+F48 -> 1140725.43 | G18: =G20+G27+G45+G48 -> 1069150.73 | H18: 4679937.29
A19: в том числе:
A20: 3.1. | B20: Расходы на выплаты персоналу в целях обеспечения выполнения функций государственными (муниципальными) органами, казенными учреждениями, органами управления государственными внебюджетными фондами, всего | C20: 100 | D20: =SUM(D22:D26) -> 1054975 | E20: =SUM(E22:E26) -> 1083855 | F20: =SUM(F22:F26) -> 1094035 | G20: =SUM(G22:G26) -> 1032723.73 | H20: 4265588.73
A21: из них:
A22: 3.1.1. | B22: Заработная плата | C22: 075;0701;69 1 01 07300;111 (211) | D22: 238700 | E22: 238700 | F22: 238700 | G22: 238700 | H22: 954800
A23: 3.1.1. | B23: Заработная плата | C23: 075;0701;69 1 01 76700;111 (211) | D23: =536800+29450 -> 566250 | E23: =536800+29450+22180 -> 588430 | F23: =536800+29450+30000 -> 596250 | G23: =536800+29450+30000 -> 596250 | H23: =SUM(D23:G23) -> 2347180
A24: 3.1.2. | B24: Прочие выплаты | C24: 075;0701;69 1 01 07300;112 (212) | H24: 0
A25: 3.1.3. | B25: Начисления на выплаты по оплате труда | C25: 075;0701;69 1 01 07300;112 (213) | D25: 78975 | E25: 78975 | F25: 78975 | G25: =78975-34943.45-25367.82-1000 -> 17663.73 | H25: =SUM(D25:G25) -> 254588.73
A26: 3.1.3. | B26: Начисления на выплаты по оплате труда | C26: 075;0701;69 1 01 76700;119 (213) | D26: =162150+8900 -> 171050 | E26: =162150+8900+6700 -> 177750 | F26: =162150+8900+9060 -> 180110 | G26: =162150+8900+9060 -> 180110 | H26: =SUM(D26:G26) -> 709020
A27: 3.2. | B27: Закупка товаров, работ и услуг для обеспечения государственных (муниципальных) нужд, всего | C27: 200 | D27: =SUM(D29:D44) -> 179863 | E27: =SUM(E29:E44) -> 144884.57 | F27: =SUM(F29:F44) -> 46440.43 | G27: =SUM(G29:G44) -> 36177 | H27: =SUM(D27:G27) -> 407365
A28: из них:
A29: 3.2.1. | B29: Услуги связи | C29: 075;0701;69 1 01 07300;244 (221) | D29: 2700 | E29: 2700 | F29: 2700 | G29: 2700 | H29: 10800
A30: 3.2.2. | B30: Транспортные услуги | C30: 075;0701;69 1 01 07300;244 (222) | H30: 0
A31: 3.2.3. | B31: Коммунальные услуги | C31: 075;0701;69 1 01 07300;244 (223) | D31: =54475+50000 -> 104475 | E31: =54475+51459.57 -> 105934.57 | F31: =54475-46984.57 -> 7490.43 | G31: =54475-50000-4475 -> 0 | H31: 217900
A32: 3.2.4. | B32: Арендная плата за пользование имуществом | C32: 075;0701;69 1 01 07300;244 (224) | H32: 0
A33: 3.2.5. | B33: Работы, услуги по содержанию имущества | C33: 075;0701;69 1 01 07300;244 (225) | H33: 0
A34: 3.2.6. | B34: Прочие работы, услуги | C34: 075;0701;69 1 01 07300;244 (226) | H34: 0
A35: 3.2.7. | B35: Прочие расходы | C35: 075;0701;69 1 01 07300;244 (290) | H35: 0
A36: 3.2.8. | B36: Увеличение стоимости основных средств | C36: 075;0701;69 1 01 07300;244 (310) | H36: =SUM(D36:G36) -> 0
A37: 3.2.8. | B37: Увеличение стоимости основных средств | C37: 075;0701;69 1 01 76700;244 (310) | D37: 24600 | H37: =SUM(D37:G37) -> 24600
A38: 3.2.9. | B38: Увеличение стоимости материальных запасов | C38: 075;0701;69 1 01 07300;244 (343) | H38: =SUM(D38:G38) -> 0
A39: 3.2.9. | B39: Увеличение стоимости материальных запасов | C39: 075;0701;69 1 01 07300;244 (344) | D39: =18125+2773 -> 20898 | E39: 18125 | F39: 18125 | G39: =18125-2773 -> 15352 | H39: 72500
A40: 3.2.9. | B40: Увеличение стоимости материальных запасов | C40: 075;0701;69 1 01 07300;244 (345) | D40: 330 | H40: =SUM(D40:G40) -> 330
A41: 3.2.9. | B41: Увеличение стоимости материальных запасов | C41: 075;0701;69 1 01 07300;244 (346) | D41: 4200 | H41: 4200
A42: 3.2.9. | B42: Увеличение стоимости материальных запасов | C42: 075;0701;69 10 1 76900;244 (344) | D42: 18125 | E42: 18125 | F42: 18125 | G42: 18125 | H42: 72500
A43: 3.2.9. | B43: Увеличение стоимости материальных запасов | C43: 075;0701;69 10 1 76900;244 (345) | D43: 335 | H43: 335
A44: 3.2.9. | B44: Увеличение стоимости материальных запасов | C44: 075;0701;69 10 1 76900;244 (346) | D44: 4200 | H44: 4200
A45: 3.3. | B45: Социальное обеспечение и иные выплаты населению, всего: | C45: 300 | D45: =D47 -> 0 | E45: =E47 -> 0 | F45: =F47 -> 0 | G45: =G47 -> 0 | H45: 0
A46: из них:
A47: 3.3.1. | B47: Пособия по социальной помощи населению | H47: 0
A48: 3.4. | B48: Иные бюджетные ассигнования, всего: | C48: 800 | D48: =SUM(D50:D52) -> 6233.56 | E48: =SUM(E50:E52) -> 250 | F48: =SUM(F50:F52) -> 250 | G48: =SUM(G50:G52) -> 250 | H48: 6983.56
A49: из них:
A50: 3.4.1. | B50: Уплата налога на имущество организаций и земельного налога | C50: 075;0701;69 1 01 07300;851 (291) | D50: 250 | E50: 250 | F50: 250 | G50: 250 | H50: 1000
A51: 3.4.2. | B51: Уплата прочих налогов, сборов | C51: 075;0701;69 1 01 07300;852 (292) | H51: 0
A52: 3.4.3. | B52: Уплата иных платежей | C52: 075;0701;69 1 01 07300;853(293) | D52: =5000+983.56 -> 5983.56 | H52: 5983.56
A53: 4. | B53: Выплаты за счет поступлений от оказания услуг (выполнения работ) на платной основе и от иной приносящей доход деятельности, всего: | C53: Х | D53: =D55+D60+D72 -> 103200 | E53: =E55+E60+E72 -> 103200 | F53: =F55+F60+F72 -> 103200 | G53: =G55+G60+G72 -> 103200 | H53: 412800
A54: в том числе:
A55: 4.1. | B55: Расходы на выплаты персоналу в целях обеспечения выполнения функций государственными (муниципальными) органами, казенными учреждениями, органами управления государственными внебюджетными фондами, всего | C55: 100 | D55: =SUM(D57:D59) -> 0 | E55: =SUM(E57:E59) -> 0 | F55: =SUM(F57:F59) -> 0 | G55: =SUM(G57:G59) -> 0 | H55: =SUM(D55:G55) -> 0
A56: из них:
A57: 4.1.1. | B57: Заработная плата | H57: =SUM(D57:G57) -> 0
A58: 4.1.2. | B58: Прочие выплаты | H58: =SUM(D58:G58) -> 0
A59: 4.1.3. | B59: Начисления на выплаты по оплате труда | H59: =SUM(D59:G59) -> 0
A60: 4.2. | B60: Закупка товаров, работ и услуг для обеспечения государственных (муниципальных) нужд, всего | C60: 200 | D60: =SUM(D62:D71) -> 103200 | E60: =SUM(E62:E71) -> 103200 | F60: =SUM(F62:F71) -> 103200 | G60: =SUM(G62:G71) -> 103200 | H60: =SUM(D60:G60) -> 412800
A61: из них:
A62: 4.2.1. | B62: Услуги связи | C62: 075;0701;00 0 00 00000 244 (221) | H62: =SUM(D62:G62) -> 0
A63: 4.2.2. | B63: Транспортные услуги | C63: 075;0701;00 0 00 00000 244 (222) | H63: 0
A64: 4.2.3. | B64: Коммунальные услуги | C64: 075;0701;00 0 00 00000 244 (223) | H64: 0
A65: 4.2.4. | B65: Арендная плата за пользование имуществом | C65: 075;0701;00 0 00 00000 244 (224) | H65: 0
A66: 4.2.5. | B66: Работы, услуги по содержанию имущества | C66: 075;0701;00 0 00 00000 244 (225) | H66: 0
A67: 4.2.6. | B67: Прочие работы, услуги | C67: 075;0701;00 0 00 00000 244 (226) | H67: 0
A68: 4.2.7. | B68: Прочие расходы | C68: 075;0701;00 0 00 00000 244 (290) | H68: 0
A69: 4.2.8. | B69: Увеличение стоимости основных средств | C69: 075;0701;00 0 00 00000 244 (310) | H69: 0
A70: 4.2.9. | B70: Увеличение стоимости материальных запасов | C70: 075;0701;00 0 00 00000 244 (343) | H70: 0
A71: 4.2.10. | B71: Увеличение стоимости материальных запасов | C71: 075;0701;00 0 00 00000 244 (344) | D71: 103200 | E71: 103200 | F71: 103200 | G71: 103200 | H71: 412800
A72: 4.3. | B72: Иные бюджетные ассигнования, всего: | C72: 800 | D72: =SUM(D74:D76) -> 0 | E72: =SUM(E74:E76) -> 0 | F72: =SUM(F74:F76) -> 0 | G72: =SUM(G74:G76) -> 0 | H72: =SUM(D72:G72) -> 0
A73: из них:
A74: 4.3.1. | B74: Уплата налога на имущество организаций и земельного налога | H74: =SUM(D74:G74) -> 0
A75: 4.3.2. | B75: Уплата прочих налогов, сборов | H75: =SUM(D75:G75) -> 0
A76: 4.3.3. | B76: Уплата иных платежей | H76: =SUM(D76:G76) -> 0
A77: 5. | B77: Выплаты за счет поступлений на осуществление бюджетных инвестиций, всего | C77: Х | D77: =SUM(D79:D80) -> 0 | E77: =SUM(E79:E80) -> 0 | F77: =SUM(F79:F80) -> 0 | G77: =SUM(G79:G80) -> 0 | H77: =SUM(D77:G77) -> 0
A78: в том числе:
H79: 0
H80: 0
A81: 6. | B81: Выплаты за счет субсидии на иные цели, всего | C81: Х | D81: =SUM(D83:D93) -> 85759.65 | E81: =SUM(E83:E93) -> 24590 | F81: 22249 | G81: 17393.62 | H81: 149992.27
A82: в том числе:
A83: 6.1 | B83: Заработная плата (софинансирование) | C83: 075;0701;37 1 01 S2300;111 (211) | D83: 1798 | E83: 1798 | H83: =SUM(D83:G83) -> 3596
A84: 6.2 | B84: Начисления на выплаты по оплате труда (софинансирование) | C84: 075;0701;37 1 01 S2300;119 (213) | D84: 543 | E84: 543 | H84: =SUM(D84:G84) -> 1086
A85: 6.3 | B85: Заработная плата (область) | C85: 075;0701;37 1 01 72300;111 (211) | D85: =17089+3730.82 -> 20819.82 | E85: 17089 | F85: 17089 | G85: =17089-3730.82 -> 13358.18 | H85: 68356
A86: 6.4 | B86: Начисления на выплаты по оплате труда (область)) | C86: 075;0701;37 1 01 72300;119 (213) | D86: =5163+1124.56 -> 6287.56 | E86: 5160 | F86: 5160 | G86: =5160-1124.56 -> 4035.44 | H86: 20643
A87: 6.5 | B87: Начисления на выплаты по оплате труда (кредиторка) | C87: 075;0701;69 1 03 073Г0;119 (213) | D87: =1000+2000+5000 -> 8000 | H87: =SUM(D87:G87) -> 8000
A88: 6.6 | B88: Услуги связи (кредиторка) | C88: 075;0701;69 1 03 073Г0;244 (221) | D88: 446.04 | H88: =SUM(D88:G88) -> 446.04
A89: 6.7 | B89: Коммунальные услуги (кредиторка) | C89: 075;0701;69 1 03 073Г0;244 (223) | D89: =24497.41+4469.82-2000 -> 26967.23 | H89: =SUM(D89:G89) -> 26967.23
A90: 6.8 | B90: Уплата налога на имущество организаций и земельного налога (кредиторка) | C90: 075;0701;69 1 03 073Г0;851 (291) | D90: 5000 | H90: 5000
A91: 6.9 | B91: Увеличение стоимости материальных запасов (кредиторка) | C91: 075;0701;69 1 03 073Г0;851 (344) | D91: =20898-5000 -> 15898 | H91: =SUM(D91:G91) -> 15898
H92: 0
A94: 7. | B94: Остаток средств на конец планируемого года | C94: Х | D94: =SUM(D96:D98) -> 0 | E94: =SUM(E96:E98) -> 0 | F94: =SUM(F96:F98) -> 0 | G94: =SUM(G96:G98) -> 0 | H94: 0
A95: в том числе:
A96: 7.1. | B96: остаток субсидии на выполнение муниципального задания | H96: 0
A97: 7.2. | B97: остаток целевой субсидии | H97: 0
A98: 7.3. | B98: остаток средств от оказания услуг (выполнения работ) на платной основе и от иной приносящей доход деятельности | H98: 0

Sheet Таблица 3
C4: Таблица 3
A6: Сведения о средствах, поступающих
A7: во временное распоряжение учреждения (подразделения)
A8: на 08 мая 20 18 г.
A9: (очередной финансовый год)
A11: Наименование показателя | B11: Код строки | C11: Сумма (руб., с точностью до двух знаков после запятой - 0,00)
A12: 1 | B12: 2 | C12: 3
A13: Остаток средств на начало года | B13: 10 | C13: 0
A14: Остаток средств на конец года | B14: 20 | C14: 0
A15: Поступление | B15: 30 | C15: 0
A17: Выбытие | B17: 40 | C17: 0

Sheet Таблица 4
C1: Таблица 4
A3: Справочная информация
A6: Наименование показателя | B6: Код строки | C6: Сумма (тыс. руб.)
A7: 1 | B7: 2 | C7: 3
A8: Объем публичных обязательств, всего: | B8: 10 | C8: 0
A9: Объем бюджетных инвестиций (в части переданных полномочий государственного (муниципального) заказчика в соответствии с Бюджетным кодексом Российской Федерации), всего: | B9: 20 | C9: 0
A10: Объем средств, поступивших во временное распоряжение, всего: | B10: 30 | C10: 0
A13: Руководитель
A14: финансово-экономической службы Г.В Колина
A16: Ответственный исполнитель И.В.Радченко
A19: " 07 " мая 2018г.
